[Event "Early-Titled-Tuesday-Blitz-October-17-2023"]
[Site "Chess.com"]
[Date "2023.10.17"]
[Round "10"]
[White "MdChess1734"]
[Black "KVAIDAN"]
[Result "1-0"]
[WhiteElo "2429"]
[BlackElo "2285"]
[TimeControl "180+1"]
[EndTime "9:59:54 PDT"]
[Termination "MdChess1734 won by checkmate"]

1. e4 {[%clk 0:02:55.5]} 1... e5 {[%clk 0:02:59.7]} 2. Nf3 {[%clk 0:02:54.7]}
2... d5 {[%clk 0:02:59]} 3. Nxe5 {[%clk 0:02:50.8]} 3... Bd6 {[%clk 0:02:58.5]}
4. d4 {[%clk 0:02:43.5]} 4... dxe4 {[%clk 0:02:58.7]} 5. Bc4 {[%clk 0:02:01.3]}
5... Bxe5 {[%clk 0:02:58.6]} 6. Qh5 {[%clk 0:01:59.4]} 6... Qe7 {[%clk
0:02:58.5]} 7. Qxe5 {[%clk 0:01:50.1]} 7... Qxe5 {[%clk 0:02:58.3]} 8. dxe5
{[%clk 0:01:50]} 8... Nc6 {[%clk 0:02:58.9]} 9. Nc3 {[%clk 0:01:43.8]} 9... Bf5
{[%clk 0:02:58.1]} 10. Bf4 {[%clk 0:01:40.8]} 10... Nge7 {[%clk 0:02:55.4]} 11.
O-O-O {[%clk 0:01:34.7]} 11... Ng6 {[%clk 0:02:54.4]} 12. Bg3 {[%clk 0:01:28.8]}
12... Ngxe5 {[%clk 0:02:54.7]} 13. Bb5 {[%clk 0:01:22.4]} 13... O-O {[%clk
0:02:52.7]} 14. Rd5 {[%clk 0:01:12.5]} 14... f6 {[%clk 0:02:34.5]} 15. Bxc6
{[%clk 0:01:11.4]} 15... bxc6 {[%clk 0:02:32.9]} 16. Rc5 {[%clk 0:01:10.6]}
16... Rfe8 {[%clk 0:02:23.7]} 17. Re1 {[%clk 0:01:05.8]} 17... Bd7 {[%clk
0:02:20.1]} 18. Rxe4 {[%clk 0:01:00.7]} 18... Ng4 {[%clk 0:02:09.8]} 19. Rd4
{[%clk 0:00:56.4]} 19... Bc8 {[%clk 0:02:00.5]} 20. Rxc6 {[%clk 0:00:41.6]}
20... Nh6 {[%clk 0:01:56.4]} 21. Rxc7 {[%clk 0:00:34.6]} 21... Nf5 {[%clk
0:01:55.9]} 22. Rd1 {[%clk 0:00:20.4]} 22... Be6 {[%clk 0:01:54.5]} 23. b3
{[%clk 0:00:17.6]} 23... a5 {[%clk 0:01:53]} 24. Kb2 {[%clk 0:00:17]} 24... h6
{[%clk 0:01:49.6]} 25. Na4 {[%clk 0:00:16.7]} 25... Rac8 {[%clk 0:01:44.8]} 26.
Rxc8 {[%clk 0:00:16.2]} 26... Rxc8 {[%clk 0:01:42.5]} 27. Nb6 {[%clk 0:00:15.6]}
27... Rc6 {[%clk 0:01:42]} 28. Nd5 {[%clk 0:00:13.8]} 28... Kh7 {[%clk 0:01:39]}
29. f3 {[%clk 0:00:12.3]} 29... h5 {[%clk 0:01:22.7]} 30. c4 {[%clk 0:00:12.4]}
30... h4 {[%clk 0:01:22.1]} 31. Bf2 {[%clk 0:00:12.6]} 31... Bf7 {[%clk
0:01:15.5]} 32. Nf4 {[%clk 0:00:12.5]} 32... g5 {[%clk 0:01:13.8]} 33. Rd7
{[%clk 0:00:12]} 33... Kg8 {[%clk 0:01:12.2]} 34. Nd5 {[%clk 0:00:10.2]} 34...
Be6 {[%clk 0:01:10]} 35. Ne7+ {[%clk 0:00:07.7]} 35... Kf7 {[%clk 0:01:06.6]}
36. Nxf5+ {[%clk 0:00:07.2]} 36... Bxd7 {[%clk 0:01:07]} 37. Nd4 {[%clk
0:00:06.7]} 37... Rd6 {[%clk 0:01:05.7]} 38. Kc3 {[%clk 0:00:07.2]} 38... f5
{[%clk 0:01:06.1]} 39. c5 {[%clk 0:00:07.3]} 39... Rg6 {[%clk 0:01:01.2]} 40. a3
{[%clk 0:00:05.2]} 40... Ke8 {[%clk 0:00:59.3]} 41. b4 {[%clk 0:00:05.6]} 41...
axb4+ {[%clk 0:00:59.6]} 42. axb4 {[%clk 0:00:06.1]} 42... Ra6 {[%clk
0:00:59.7]} 43. b5 {[%clk 0:00:06.2]} 43... Ra2 {[%clk 0:00:59.8]} 44. Be3
{[%clk 0:00:06.4]} 44... Rxg2 {[%clk 0:00:58.1]} 45. c6 {[%clk 0:00:06.8]} 45...
Bxc6 {[%clk 0:00:53.6]} 46. bxc6 {[%clk 0:00:05.8]} 46... Rxh2 {[%clk
0:00:53.3]} 47. Bxg5 {[%clk 0:00:04.9]} 47... h3 {[%clk 0:00:53.2]} 48. Nxf5
{[%clk 0:00:04.3]} 48... Rg2 {[%clk 0:00:49.8]} 49. Nd6+ {[%clk 0:00:04.3]}
49... Kf8 {[%clk 0:00:44.9]} 50. c7 {[%clk 0:00:04.9]} 50... Rxg5 {[%clk
0:00:45.3]} 51. c8=Q+ {[%clk 0:00:05.1]} 51... Kg7 {[%clk 0:00:45.7]} 52. Qd7+
{[%clk 0:00:04.8]} 52... Kg6 {[%clk 0:00:46]} 53. Qxh3 {[%clk 0:00:05.2]} 53...
Rh5 {[%clk 0:00:44.8]} 54. Qe6+ {[%clk 0:00:05]} 54... Kg5 {[%clk 0:00:42.4]}
55. Qf5+ {[%clk 0:00:05.6]} 55... Kh4 {[%clk 0:00:42.3]} 56. Qg4# {[%clk
0:00:05.5]} 1-0

[Event "Early-Titled-Tuesday-Blitz-October-17-2023"]
[Site "Chess.com"]
[Date "2023.10.17"]
[Round "10"]
[White "Treasurechess777"]
[Black "Khuslen2008"]
[Result "0-1"]
[WhiteElo "2436"]
[BlackElo "2310"]
[TimeControl "180+1"]
[EndTime "9:59:56 PDT"]
[Termination "Khuslen2008 won on time"]

1. Nf3 {[%clk 0:03:00.9]} 1... Nf6 {[%clk 0:02:59.3]} 2. b3 {[%clk 0:03:00.7]}
2... g6 {[%clk 0:02:55.9]} 3. Bb2 {[%clk 0:03:00.8]} 3... Bg7 {[%clk 0:02:56.1]}
4. c4 {[%clk 0:03:01.4]} 4... O-O {[%clk 0:02:55.3]} 5. d3 {[%clk 0:03:01.8]}
5... d6 {[%clk 0:02:55.6]} 6. Nbd2 {[%clk 0:03:01.9]} 6... e5 {[%clk 0:02:55.9]}
7. Qc2 {[%clk 0:03:02]} 7... Nbd7 {[%clk 0:02:56]} 8. e3 {[%clk 0:03:02.1]} 8...
Qe7 {[%clk 0:02:55.4]} 9. Be2 {[%clk 0:03:02.2]} 9... Kh8 {[%clk 0:02:53.6]} 10.
O-O {[%clk 0:03:02.2]} 10... Ng8 {[%clk 0:02:52.8]} 11. Ne4 {[%clk 0:03:00.8]}
11... a5 {[%clk 0:02:49.8]} 12. Nc3 {[%clk 0:03:00.4]} 12... c6 {[%clk
0:02:48.9]} 13. d4 {[%clk 0:02:29.1]} 13... f5 {[%clk 0:02:47.1]} 14. dxe5
{[%clk 0:02:24]} 14... dxe5 {[%clk 0:02:45.6]} 15. e4 {[%clk 0:02:21.8]} 15...
f4 {[%clk 0:02:45.2]} 16. a3 {[%clk 0:02:16.1]} 16... g5 {[%clk 0:02:42.7]} 17.
Nd2 {[%clk 0:02:07.2]} 17... Ndf6 {[%clk 0:02:31.6]} 18. b4 {[%clk 0:02:02.8]}
18... g4 {[%clk 0:02:27]} 19. f3 {[%clk 0:02:01.2]} 19... g3 {[%clk 0:02:26.7]}
20. h3 {[%clk 0:01:54.1]} 20... Nh6 {[%clk 0:02:24.6]} 21. c5 {[%clk 0:01:51.6]}
21... Nf7 {[%clk 0:02:24.5]} 22. Rfd1 {[%clk 0:01:49.3]} 22... Ng5 {[%clk
0:02:23.1]} 23. Bf1 {[%clk 0:01:49.4]} 23... Qf7 {[%clk 0:02:06.2]} 24. Nc4
{[%clk 0:01:46.8]} 24... Qh5 {[%clk 0:01:56.2]} 25. Nxe5 {[%clk 0:01:41.5]}
25... Nxh3+ {[%clk 0:01:54.8]} 26. gxh3 {[%clk 0:01:40.4]} 26... Qxe5 {[%clk
0:01:53.1]} 27. Nd5 {[%clk 0:01:31.5]} 27... Qg5 {[%clk 0:01:35.4]} 28. h4
{[%clk 0:00:55.4]} 28... Qxh4 {[%clk 0:01:30.7]} 29. Nb6 {[%clk 0:00:42.9]}
29... Rb8 {[%clk 0:01:28.4]} 30. Be5 {[%clk 0:00:41.7]} 30... Be6 {[%clk
0:01:07.4]} 31. Bxb8 {[%clk 0:00:40.6]} 31... Rxb8 {[%clk 0:01:06.4]} 32. Rd6
{[%clk 0:00:37.2]} 32... Bf7 {[%clk 0:00:51.5]} 33. Rad1 {[%clk 0:00:36.9]}
33... Nh5 {[%clk 0:00:45.6]} 34. Rd7 {[%clk 0:00:25.1]} 34... Be6 {[%clk
0:00:41.4]} 35. R7d6 {[%clk 0:00:22.9]} 35... Bf7 {[%clk 0:00:38.4]} 36. bxa5
{[%clk 0:00:18.5]} 36... Rg8 {[%clk 0:00:37.5]} 37. Qg2 {[%clk 0:00:13.5]} 37...
Be5 {[%clk 0:00:27.5]} 38. Rd7 {[%clk 0:00:09.8]} 38... Bb3 {[%clk 0:00:26.9]}
39. R1d2 {[%clk 0:00:06.4]} 39... Nf6 {[%clk 0:00:24.9]} 40. Rxb7 {[%clk
0:00:04.8]} 40... Bc3 {[%clk 0:00:19.6]} 41. Rdd7 {[%clk 0:00:02.8]} 41... Be6
{[%clk 0:00:17.8]} 42. Rd6 {[%clk 0:00:01.5]} 42... Nxe4 {[%clk 0:00:17]} 43.
Nd7 {[%clk 0:00:02.1]} 43... Nxd6 {[%clk 0:00:11.8]} 44. cxd6 {[%clk 0:00:01.6]}
44... Bd4+ {[%clk 0:00:11.9]} 0-1

[Event "Early-Titled-Tuesday-Blitz-October-17-2023"]
[Site "Chess.com"]
[Date "2023.10.17"]
[Round "10"]
[White "Aleksandar-Topalov"]
[Black "GMJustin"]
[Result "0-1"]
[WhiteElo "2327"]
[BlackElo "2197"]
[TimeControl "180+1"]
[EndTime "9:59:56 PDT"]
[Termination "GMJustin won by resignation"]

1. b3 {[%clk 0:02:56.4]} 1... Nh6 {[%clk 0:02:24.4]} 2. Bb2 {[%clk 0:02:51.3]}
2... f6 {[%clk 0:02:24.4]} 3. Nf3 {[%clk 0:02:48.6]} 3... Nf7 {[%clk 0:02:23.4]}
4. e4 {[%clk 0:02:41.7]} 4... e6 {[%clk 0:02:21.8]} 5. d4 {[%clk 0:02:41.4]}
5... d5 {[%clk 0:02:19.5]} 6. Nbd2 {[%clk 0:02:39.3]} 6... Be7 {[%clk
0:02:16.2]} 7. Bd3 {[%clk 0:02:37.8]} 7... O-O {[%clk 0:02:09.3]} 8. O-O {[%clk
0:02:37.9]} 8... a5 {[%clk 0:02:02.6]} 9. a3 {[%clk 0:02:37.6]} 9... a4 {[%clk
0:01:59.1]} 10. b4 {[%clk 0:02:36.8]} 10... b6 {[%clk 0:01:56]} 11. c4 {[%clk
0:02:33.9]} 11... dxc4 {[%clk 0:01:40.7]} 12. Bxc4 {[%clk 0:02:29]} 12... c5
{[%clk 0:01:35.3]} 13. dxc5 {[%clk 0:02:24.8]} 13... bxc5 {[%clk 0:01:34.2]} 14.
b5 {[%clk 0:02:22.8]} 14... Nd6 {[%clk 0:01:26.4]} 15. e5 {[%clk 0:02:14.1]}
15... Nxc4 {[%clk 0:01:19.5]} 16. Nxc4 {[%clk 0:02:14.3]} 16... Qxd1 {[%clk
0:01:01]} 17. Raxd1 {[%clk 0:02:10.1]} 17... Nd7 {[%clk 0:00:59.4]} 18. exf6
{[%clk 0:01:52.5]} 18... Nxf6 {[%clk 0:00:49.7]} 19. Nfe5 {[%clk 0:01:42.5]}
19... Bb7 {[%clk 0:00:33.9]} 20. Nd7 {[%clk 0:01:31]} 20... Rfd8 {[%clk
0:00:25.5]} 21. Ndb6 {[%clk 0:01:24.9]} 21... Ra7 {[%clk 0:00:05.2]} 22. Rxd8+
{[%clk 0:01:19.8]} 22... Bxd8 {[%clk 0:00:05.3]} 23. Rd1 {[%clk 0:01:12.5]}
23... Nd5 {[%clk 0:00:05.1]} 24. Nd7 {[%clk 0:01:09.4]} 24... Be7 {[%clk
0:00:02.4]} 25. Nde5 {[%clk 0:00:49.5]} 25... Bc8 {[%clk 0:00:02.4]} 26. Nc6
{[%clk 0:00:48.2]} 26... Rb7 {[%clk 0:00:02.8]} 27. b6 {[%clk 0:00:26.6]} 27...
Rd7 {[%clk 0:00:02.9]} 28. N6a5 {[%clk 0:00:20]} 28... Nxb6 {[%clk 0:00:02.8]}
29. Rxd7 {[%clk 0:00:17.8]} 29... Nxd7 {[%clk 0:00:03.4]} 30. Nc6 {[%clk
0:00:17.2]} 30... Bf8 {[%clk 0:00:03.7]} 31. Bc3 {[%clk 0:00:13.8]} 31... Ba6
{[%clk 0:00:04.1]} 32. N4e5 {[%clk 0:00:11]} 32... Bb5 {[%clk 0:00:04.3]} 33.
Na7 {[%clk 0:00:09.3]} 33... Nxe5 {[%clk 0:00:04.2]} 34. Nxb5 {[%clk 0:00:08.7]}
34... Nc4 {[%clk 0:00:03.9]} 35. Kf1 {[%clk 0:00:07.3]} 35... e5 {[%clk
0:00:04.1]} 36. Ke2 {[%clk 0:00:06.9]} 36... Kf7 {[%clk 0:00:04.2]} 37. Kd3
{[%clk 0:00:06.9]} 37... Nd6 {[%clk 0:00:04.4]} 38. f3 {[%clk 0:00:05.6]} 38...
Nxb5 {[%clk 0:00:04.1]} 39. Bxe5 {[%clk 0:00:04.6]} 39... Nxa3 {[%clk
0:00:04.2]} 40. Bb2 {[%clk 0:00:03.1]} 40... c4+ {[%clk 0:00:04.2]} 41. Kc3
{[%clk 0:00:02.8]} 41... Be7 {[%clk 0:00:04.7]} 42. Bxa3 {[%clk 0:00:01.2]}
42... Bxa3 {[%clk 0:00:04.1]} 43. Kxc4 {[%clk 0:00:01.7]} 43... Bd6 {[%clk
0:00:04.5]} 44. Kb5 {[%clk 0:00:01.7]} 44... a3 {[%clk 0:00:04.6]} 0-1

[Event "Early-Titled-Tuesday-Blitz-October-17-2023"]
[Site "Chess.com"]
[Date "2023.10.17"]
[Round "10"]
[White "Yeremyan_ChessMate"]
[Black "Zhigalko_Sergei"]
[Result "1/2-1/2"]
[WhiteElo "2756"]
[BlackElo "2944"]
[TimeControl "180+1"]
[EndTime "9:59:57 PDT"]
[Termination "Game drawn by repetition"]

1. c4 {[%clk 0:03:00.9]} 1... e5 {[%clk 0:03:00.1]} 2. g3 {[%clk 0:02:54.4]}
2... Nf6 {[%clk 0:03:00.3]} 3. Nc3 {[%clk 0:02:54.6]} 3... c6 {[%clk 0:02:58.8]}
4. d4 {[%clk 0:02:51.3]} 4... exd4 {[%clk 0:02:59.7]} 5. Qxd4 {[%clk 0:02:51.1]}
5... Na6 {[%clk 0:03:00.6]} 6. Bg2 {[%clk 0:02:50.7]} 6... Bc5 {[%clk 0:03:01]}
7. Qd1 {[%clk 0:02:50]} 7... O-O {[%clk 0:02:59.4]} 8. Nf3 {[%clk 0:02:50.5]}
8... Re8 {[%clk 0:02:57.6]} 9. O-O {[%clk 0:02:47.5]} 9... Bf8 {[%clk
0:02:55.7]} 10. a3 {[%clk 0:02:45.4]} 10... Nc7 {[%clk 0:02:47.8]} 11. b4 {[%clk
0:02:45.1]} 11... d5 {[%clk 0:02:47.4]} 12. cxd5 {[%clk 0:02:45.7]} 12... Ncxd5
{[%clk 0:02:47.7]} 13. Nxd5 {[%clk 0:02:46.1]} 13... Nxd5 {[%clk 0:02:47.3]} 14.
Bb2 {[%clk 0:02:46.8]} 14... Bf5 {[%clk 0:02:38.4]} 15. Ne5 {[%clk 0:02:41.3]}
15... Qf6 {[%clk 0:02:15.2]} 16. e4 {[%clk 0:02:36.6]} 16... Rxe5 {[%clk
0:02:01.9]} 17. exf5 {[%clk 0:02:35.2]} 17... Qxf5 {[%clk 0:01:57.1]} 18. Bxe5
{[%clk 0:02:35.2]} 18... Qxe5 {[%clk 0:01:58]} 19. Bxd5 {[%clk 0:02:35.7]} 19...
cxd5 {[%clk 0:01:57]} 20. Qd3 {[%clk 0:02:35.9]} 20... Rd8 {[%clk 0:01:54.1]}
21. Rfe1 {[%clk 0:02:36.2]} 21... Qf6 {[%clk 0:01:49.8]} 22. Rac1 {[%clk
0:02:36]} 22... b6 {[%clk 0:01:39.9]} 23. Rc7 {[%clk 0:02:33.8]} 23... a5 {[%clk
0:01:40.3]} 24. bxa5 {[%clk 0:02:31.7]} 24... bxa5 {[%clk 0:01:41.2]} 25. Rec1
{[%clk 0:02:31.4]} 25... Qe6 {[%clk 0:01:35.3]} 26. R1c6 {[%clk 0:02:31]} 26...
Qg4 {[%clk 0:01:08.9]} 27. Kg2 {[%clk 0:02:23.5]} 27... d4 {[%clk 0:01:09.1]}
28. h3 {[%clk 0:02:18.2]} 28... Qh5 {[%clk 0:01:00.6]} 29. Rc8 {[%clk
0:01:57.4]} 29... Rxc8 {[%clk 0:00:54.6]} 30. Rxc8 {[%clk 0:01:56.5]} 30... Qd5+
{[%clk 0:00:55.3]} 31. Kg1 {[%clk 0:01:48.8]} 31... Qd7 {[%clk 0:00:46]} 32. Rc4
{[%clk 0:01:47.1]} 32... Qxh3 {[%clk 0:00:45.7]} 33. Rxd4 {[%clk 0:01:47]} 33...
h5 {[%clk 0:00:35.8]} 34. Rd8 {[%clk 0:01:41.6]} 34... Qe6 {[%clk 0:00:36]} 35.
a4 {[%clk 0:01:33.6]} 35... h4 {[%clk 0:00:35.1]} 36. Qe3 {[%clk 0:01:08.8]}
36... Qc4 {[%clk 0:00:10.4]} 37. Qe7 {[%clk 0:00:51.9]} 37... Qc1+ {[%clk
0:00:03.3]} 38. Kh2 {[%clk 0:00:30.6]} 38... hxg3+ {[%clk 0:00:03.2]} 39. Kg2
{[%clk 0:00:17.7]} 39... Qc6+ {[%clk 0:00:03.1]} 40. Kxg3 {[%clk 0:00:13.2]}
40... Qg6+ {[%clk 0:00:03.2]} 41. Kf3 {[%clk 0:00:10.6]} 41... Qh5+ {[%clk
0:00:01.4]} 42. Kg3 {[%clk 0:00:08.3]} 42... Qg6+ {[%clk 0:00:01.5]} 43. Kf3
{[%clk 0:00:08.8]} 43... Qh5+ {[%clk 0:00:01.9]} 44. Ke3 {[%clk 0:00:09.1]}
44... Qh6+ {[%clk 0:00:02.3]} 45. Ke2 {[%clk 0:00:08.4]} 45... Qh5+ {[%clk
0:00:02.5]} 46. Ke3 {[%clk 0:00:06.5]} 46... Qh6+ {[%clk 0:00:02.3]} 47. Kf3
{[%clk 0:00:07.2]} 47... Qh5+ {[%clk 0:00:02.6]} 1/2-1/2

[Event "Early-Titled-Tuesday-Blitz-October-17-2023"]
[Site "Chess.com"]
[Date "2023.10.17"]
[Round "10"]
[White "maracayo"]
[Black "Aash20"]
[Result "0-1"]
[WhiteElo "2371"]
[BlackElo "2535"]
[TimeControl "180+1"]
[EndTime "9:59:57 PDT"]
[Termination "Aash20 won on time"]

1. e4 {[%clk 0:03:00.9]} 1... c5 {[%clk 0:02:58.6]} 2. Nf3 {[%clk 0:03:00.4]}
2... d6 {[%clk 0:02:58.1]} 3. d3 {[%clk 0:02:58.8]} 3... g6 {[%clk 0:02:56.4]}
4. Nbd2 {[%clk 0:02:58.1]} 4... Bg7 {[%clk 0:02:56.6]} 5. Be2 {[%clk 0:02:58.7]}
5... Nf6 {[%clk 0:02:56.9]} 6. O-O {[%clk 0:02:59.2]} 6... O-O {[%clk
0:02:57.4]} 7. h3 {[%clk 0:02:59.7]} 7... Nc6 {[%clk 0:02:57.2]} 8. Re1 {[%clk
0:02:59.9]} 8... Rb8 {[%clk 0:02:53.8]} 9. c3 {[%clk 0:03:00]} 9... b5 {[%clk
0:02:54.3]} 10. d4 {[%clk 0:03:00.2]} 10... b4 {[%clk 0:02:52.3]} 11. d5 {[%clk
0:02:59.5]} 11... Na5 {[%clk 0:02:49.8]} 12. c4 {[%clk 0:02:58.9]} 12... Nb7
{[%clk 0:02:42.2]} 13. Rb1 {[%clk 0:02:57]} 13... a5 {[%clk 0:02:40.9]} 14. Bd3
{[%clk 0:02:55.4]} 14... Ra8 {[%clk 0:02:36.8]} 15. e5 {[%clk 0:02:54.9]} 15...
dxe5 {[%clk 0:02:35.9]} 16. Nxe5 {[%clk 0:02:54.2]} 16... Re8 {[%clk 0:02:34.9]}
17. Nc6 {[%clk 0:02:47.8]} 17... Qc7 {[%clk 0:02:33.1]} 18. Nf3 {[%clk 0:02:44]}
18... Nd6 {[%clk 0:02:32.3]} 19. Bf4 {[%clk 0:02:40.8]} 19... Bb7 {[%clk
0:02:31.6]} 20. Nfe5 {[%clk 0:02:27.6]} 20... Nd7 {[%clk 0:02:20.3]} 21. Qf3
{[%clk 0:01:58.3]} 21... Bxc6 {[%clk 0:01:58.8]} 22. Nxc6 {[%clk 0:01:51.6]}
22... Nf6 {[%clk 0:01:55.2]} 23. Re2 {[%clk 0:01:28.4]} 23... a4 {[%clk
0:01:46.1]} 24. Rbe1 {[%clk 0:01:27.3]} 24... Bf8 {[%clk 0:01:45.4]} 25. g4
{[%clk 0:01:07.6]} 25... Ra6 {[%clk 0:01:42.6]} 26. Qg3 {[%clk 0:01:03.4]} 26...
Rxc6 {[%clk 0:01:36.3]} 27. dxc6 {[%clk 0:01:02.8]} 27... Rd8 {[%clk 0:01:35.1]}
28. Qf3 {[%clk 0:00:58.2]} 28... Rc8 {[%clk 0:01:30.3]} 29. Bc2 {[%clk
0:00:36.7]} 29... Qxc6 {[%clk 0:01:26.5]} 30. Qxc6 {[%clk 0:00:36]} 30... Rxc6
{[%clk 0:01:26.5]} 31. Bxa4 {[%clk 0:00:35.8]} 31... Ra6 {[%clk 0:01:24.4]} 32.
b3 {[%clk 0:00:28.8]} 32... Ra7 {[%clk 0:01:15.6]} 33. f3 {[%clk 0:00:26.8]}
33... Nxc4 {[%clk 0:01:10.9]} 34. Rc2 {[%clk 0:00:21.2]} 34... Nb6 {[%clk
0:01:09.2]} 35. Rxc5 {[%clk 0:00:20]} 35... Nxa4 {[%clk 0:01:08.9]} 36. bxa4
{[%clk 0:00:20.7]} 36... Rxa4 {[%clk 0:01:06.3]} 37. Rc8 {[%clk 0:00:20.2]}
37... Kg7 {[%clk 0:01:06.5]} 38. Be5 {[%clk 0:00:18]} 38... h6 {[%clk
0:01:05.5]} 39. h4 {[%clk 0:00:17.8]} 39... g5 {[%clk 0:00:59]} 40. f4 {[%clk
0:00:17.8]} 40... Kg6 {[%clk 0:00:49.9]} 41. Rxf8 {[%clk 0:00:16.2]} 41... Nxg4
{[%clk 0:00:49.4]} 42. f5+ {[%clk 0:00:14.3]} 42... Kxf5 {[%clk 0:00:46.4]} 43.
Rxf7+ {[%clk 0:00:14.5]} 43... Ke6 {[%clk 0:00:44.8]} 44. Rh7 {[%clk 0:00:11.8]}
44... Nxe5 {[%clk 0:00:42.6]} 45. Rxh6+ {[%clk 0:00:10.4]} 45... Kf5 {[%clk
0:00:42.8]} 46. Rxe5+ {[%clk 0:00:08.5]} 46... Kxe5 {[%clk 0:00:42.7]} 47. hxg5
{[%clk 0:00:09.4]} 47... Rxa2 {[%clk 0:00:42.6]} 48. Rh7 {[%clk 0:00:09.6]}
48... Ke6 {[%clk 0:00:41.9]} 49. g6 {[%clk 0:00:07.3]} 49... Ra5 {[%clk
0:00:41.2]} 50. Rh4 {[%clk 0:00:06.6]} 50... Rb5 {[%clk 0:00:38.5]} 51. Rg4
{[%clk 0:00:04.6]} 51... Rb8 {[%clk 0:00:36.8]} 52. g7 {[%clk 0:00:03.6]} 52...
Kf7 {[%clk 0:00:37.1]} 53. Kf2 {[%clk 0:00:03.4]} 53... b3 {[%clk 0:00:34]} 0-1

[Event "Early-Titled-Tuesday-Blitz-October-17-2023"]
[Site "Chess.com"]
[Date "2023.10.17"]
[Round "10"]
[White "Irina_Mikhaylova"]
[Black "JoliyRoger"]
[Result "1-0"]
[WhiteElo "2325"]
[BlackElo "2439"]
[TimeControl "180+1"]
[EndTime "9:59:59 PDT"]
[Termination "Irina_Mikhaylova won on time"]

1. Nf3 {[%clk 0:03:00.9]} 1... Nf6 {[%clk 0:02:58.2]} 2. c4 {[%clk 0:03:00.6]}
2... c5 {[%clk 0:02:58.8]} 3. Nc3 {[%clk 0:03:00.6]} 3... e6 {[%clk 0:02:59.3]}
4. d4 {[%clk 0:03:00.9]} 4... cxd4 {[%clk 0:02:59.8]} 5. Nxd4 {[%clk 0:03:01.3]}
5... a6 {[%clk 0:03:00.7]} 6. e3 {[%clk 0:03:00.1]} 6... Bb4 {[%clk 0:02:56.6]}
7. Bd2 {[%clk 0:03:00.1]} 7... O-O {[%clk 0:02:56.2]} 8. a3 {[%clk 0:03:00.3]}
8... Be7 {[%clk 0:02:55.5]} 9. Be2 {[%clk 0:03:00.7]} 9... Nc6 {[%clk
0:02:56.1]} 10. O-O {[%clk 0:03:00.5]} 10... Ne5 {[%clk 0:02:56.6]} 11. Nf3
{[%clk 0:02:55.7]} 11... Ng6 {[%clk 0:02:54.2]} 12. Bd3 {[%clk 0:02:53]} 12...
Qc7 {[%clk 0:02:53.8]} 13. Rc1 {[%clk 0:02:50.9]} 13... Rb8 {[%clk 0:02:53.9]}
14. Ne4 {[%clk 0:02:50.1]} 14... Nxe4 {[%clk 0:02:40.1]} 15. Bxe4 {[%clk
0:02:50.1]} 15... d6 {[%clk 0:02:34.9]} 16. Bb4 {[%clk 0:02:28.4]} 16... Bd7
{[%clk 0:02:28.3]} 17. Qd3 {[%clk 0:02:09.1]} 17... Bc6 {[%clk 0:02:25.5]} 18.
Rfd1 {[%clk 0:02:08.9]} 18... Rfd8 {[%clk 0:02:20.5]} 19. Nd4 {[%clk 0:02:08.6]}
19... Bxe4 {[%clk 0:01:52.1]} 20. Qxe4 {[%clk 0:02:08]} 20... Rbc8 {[%clk
0:01:52.7]} 21. h3 {[%clk 0:01:55.6]} 21... d5 {[%clk 0:01:28.8]} 22. cxd5
{[%clk 0:01:54.7]} 22... Qxc1 {[%clk 0:01:28.4]} 23. Rxc1 {[%clk 0:01:55.1]}
23... Rxc1+ {[%clk 0:01:28.8]} 24. Kh2 {[%clk 0:01:55.6]} 24... exd5 {[%clk
0:00:52]} 25. Qg4 {[%clk 0:01:26.4]} 25... Bf6 {[%clk 0:00:48.6]} 26. Bc3 {[%clk
0:01:18]} 26... h6 {[%clk 0:00:34.6]} 27. Qe2 {[%clk 0:00:49.7]} 27... Be5+
{[%clk 0:00:31.4]} 28. f4 {[%clk 0:00:38.7]} 28... Bxd4 {[%clk 0:00:26.3]} 29.
Bxd4 {[%clk 0:00:38.5]} 29... Nf8 {[%clk 0:00:13.7]} 30. f5 {[%clk 0:00:29.5]}
30... Rc6 {[%clk 0:00:11]} 31. Qg4 {[%clk 0:00:25.6]} 31... f6 {[%clk
0:00:11.4]} 32. Qe2 {[%clk 0:00:17.3]} 32... Nd7 {[%clk 0:00:11.4]} 33. g4
{[%clk 0:00:16.8]} 33... Nc5 {[%clk 0:00:10.1]} 34. Kg3 {[%clk 0:00:15.9]} 34...
Ne4+ {[%clk 0:00:10.5]} 35. Kf4 {[%clk 0:00:16]} 35... Rc4 {[%clk 0:00:10.7]}
36. h4 {[%clk 0:00:13.9]} 36... Re8 {[%clk 0:00:10.5]} 37. g5 {[%clk 0:00:14]}
37... hxg5+ {[%clk 0:00:10.8]} 38. hxg5 {[%clk 0:00:14.4]} 38... Nxg5 {[%clk
0:00:11.5]} 39. Kg4 {[%clk 0:00:15]} 39... Re4+ {[%clk 0:00:11.8]} 40. Kh5
{[%clk 0:00:15.5]} 40... Re8 {[%clk 0:00:12.5]} 41. Kg6 {[%clk 0:00:15.5]} 41...
Nf7 {[%clk 0:00:11.5]} 42. Qh5 {[%clk 0:00:14.5]} 42... Rxd4 {[%clk 0:00:09.3]}
43. Qh7+ {[%clk 0:00:13.8]} 43... Kf8 {[%clk 0:00:09.9]} 44. Qxg7+ {[%clk
0:00:14.2]} 44... Ke7 {[%clk 0:00:10.5]} 45. Qxf7+ {[%clk 0:00:14.8]} 45... Kd6
{[%clk 0:00:10.4]} 46. Qxf6+ {[%clk 0:00:13.9]} 46... Kc5 {[%clk 0:00:10.4]} 47.
Qxd4+ {[%clk 0:00:14.3]} 47... Kc6 {[%clk 0:00:10.4]} 48. f6 {[%clk 0:00:14.9]}
48... Re4 {[%clk 0:00:11.3]} 49. f7 {[%clk 0:00:15]} 1-0